fUSD/lending_fUSD_20250503
["ID","MTS","AMOUNT","RATE_DAILY","PERIOD"]
[359676180,1746243048005,-450.0,0.00019857,2]
[359676181,1746243048014,-450.0,0.00019857,2]
[359676182,1746243048023,-450.0,0.00019857,2]
[359676183,1746243048033,-450.0,0.00019857,2]
[359676184,1746243048042,-755.25,0.00019857,2]
[359676185,1746243048051,-450.0,0.00019857,2]
[359676186,1746243048061,-450.0,0.00019857,2]
[359676187,1746243048070,-450.0,0.00019857,2]
[359676188,1746243048079,-450.0,0.00019857,2]
[359676189,1746243048088,-471.32532163,0.00019857,2]
[359676190,1746243048098,-365.0454029,0.00019857,2]
[359676191,1746243048108,-450.0,0.00019857,2]
[359676192,1746243048117,-568.95,0.00019857,2]
[359676193,1746243048127,-560.08,0.00019857,2]
[359676194,1746243048136,-450.0,0.00019857,2]
[359676195,1746243048146,-450.0,0.00019857,2]
[359676196,1746243048158,-516.14,0.00019857,2]
[359676197,1746243048167,-450.0,0.00019857,2]
[359676198,1746243048176,-993.17,0.00019857,2]
[359676199,1746243048186,-450.0,0.00019857,2]
[359676200,1746243048196,-1432.92,0.00019857,2]
[359676201,1746243048206,-450.0,0.00019857,2]
[359676202,1746243048215,-632.47,0.00019857,2]
[359676203,1746243048226,-450.0,0.00019857,2]
[359676204,1746243048237,-477.87,0.00019857,2]
[359676205,1746243048247,-450.0,0.00019857,2]
[359676206,1746243048256,-450.0,0.00019857,2]
[359676207,1746243048266,-604.28,0.00019857,2]
[359676208,1746243048276,-1648.11,0.00019857,2]
[359676209,1746243048286,-450.0,0.00019857,2]
[359676210,1746243048295,-450.0,0.00019857,2]
[359676211,1746243048305,-450.0,0.00019857,2]
[359676212,1746243048316,-450.0,0.00019857,2]
[359676213,1746243048325,-680.06,0.00019857,2]
[359676214,1746243048335,-450.0,0.00019857,2]
[359676215,1746243048345,-450.0,0.00019857,2]
[359676216,1746243048355,-450.0,0.00019857,2]
[359676217,1746243048365,-450.0,0.00019857,2]
[359676218,1746243048375,-450.0,0.00019857,2]
[359676219,1746243048384,-450.0,0.00019857,2]
[359676220,1746243048394,-463.62,0.00019857,2]
[359676221,1746243048404,-450.0,0.00019857,2]
[359676222,1746243048414,-808.75,0.00019857,2]
[359676223,1746243048425,-3995.65,0.00019857,2]
[359676224,1746243048436,-450.0,0.00019857,2]
[359676225,1746243048446,-977.42,0.00019857,2]
[359676226,1746243048455,-450.0,0.00019857,2]
[359676227,1746243048465,-818.31,0.00019857,2]
[359676228,1746243048475,-4710.05,0.00019857,2]
[359676229,1746243048485,-450.0,0.00019857,2]
[359676230,1746243048495,-450.0,0.00019857,2]
[359676231,1746243048505,-450.0,0.00019857,2]
[359676232,1746243048514,-4283.39,0.00019857,2]
[359676233,1746243048524,-462.88,0.00019857,2]
[359676234,1746243048534,-450.0,0.00019857,2]
[359676235,1746243048543,-450.0,0.00019857,2]
[359676236,1746243048553,-450.0,0.00019857,2]
[359676237,1746243048564,-450.0,0.00019857,2]
[359676238,1746243048574,-1000.99,0.00019857,2]
[359676239,1746243048584,-450.0,0.00019857,2]
[359676240,1746243048595,-941.49,0.00019857,2]
[359676241,1746243048605,-450.0,0.00019857,2]
[359676242,1746243048615,-450.0,0.00019857,2]
[359676243,1746243048625,-548.9,0.00019857,2]
[359676244,1746243048635,-745.52,0.00019857,2]
[359676245,1746243048645,-450.0,0.00019857,2]
[359676246,1746243048654,-2480.99,0.00019857,2]
[359676247,1746243048664,-4689.06,0.00019857,2]
[359676248,1746243048674,-450.0,0.00019857,2]
[359676249,1746243048684,-450.0,0.00019857,2]
[359676250,1746243048694,-450.0,0.00019857,2]
[359676251,1746243048704,-85177.16,0.00019857,2]
[359676252,1746243048714,-1087.32,0.00019857,2]
[359676253,1746243048723,-450.0,0.00019857,2]
[359676254,1746243048733,-558.66,0.00019857,2]
[359676255,1746243048743,-450.0,0.00019857,2]
[359676256,1746243048753,-712.48,0.00019857,2]
[359676257,1746243048762,-5041.18,0.00019857,2]
[359676258,1746243048772,-27671.24,0.00019857,2]
[359676259,1746243048782,-2238.11,0.00019857,2]
[359676260,1746243048793,-588.96,0.00019857,2]
[359676261,1746243048803,-794.37,0.00019857,2]
[359676262,1746243048813,-1820.53,0.00019857,2]
[359676263,1746243048823,-450.0,0.00019857,2]
[359676264,1746243048832,-300.0,0.00019857,2]
[359676265,1746243048842,-486.43,0.00019857,2]
[359676266,1746243048851,-450.0,0.00019857,2]
[359676267,1746243048861,-15516.38,0.00019857,2]
[359676268,1746243048871,-454.53686391,0.00019857,2]
[359676269,1746243048882,-450.0,0.00019857,2]
[359676270,1746243048892,-450.0,0.00019857,2]
[359676271,1746243048902,-473.26684363,0.00019857,2]
[359676272,1746243048912,-450.0,0.00019857,2]
[359676273,1746243048922,-450.0,0.00019857,2]
[359676274,1746243048932,-450.0,0.00019857,2]
[359676275,1746243048942,-450.0,0.00019857,2]
[359676276,1746243048954,-450.0,0.00019857,2]
[359676277,1746243048963,-450.0,0.00019857,2]
[359676278,1746243048973,-450.0,0.00019857,2]
[359676279,1746243048983,-2649.35,0.00019857,2]
[359676280,1746243048994,-460.4631633,0.00019857,2]
[359676281,1746243049003,-472.15560293,0.00019857,2]
[359676282,1746243049013,-499.31,0.00019857,2]
[359676283,1746243049023,-450.0,0.00019857,2]
[359676284,1746243049033,-455.94,0.00019857,2]
[359676285,1746243049043,-450.0,0.00019857,2]
[359676286,1746243049053,-450.0,0.00019857,2]
[359676287,1746243049063,-1040.89,0.00019857,2]
[359676288,1746243049073,-450.0,0.00019857,2]
[359676289,1746243049083,-450.0,0.00019857,2]
[359676290,1746243049092,-450.0,0.00019857,2]
[359676291,1746243049102,-1081.24,0.00019857,2]
[359676292,1746243049112,-450.0,0.00019857,2]
[359676293,1746243049121,-450.0,0.00019857,2]
[359676294,1746243049131,-450.0,0.00019857,2]
[359676295,1746243049140,-450.0,0.00019857,2]
[359676296,1746243049154,-505.72372806,0.00019858,2]
[359676297,1746243049165,-450.0,0.00019858,2]
[359676298,1746243049174,-356.92621628,0.00019858,2]
[359676299,1746243049184,-500.0,0.00019863,2]
[359676300,1746243049194,-12500.0,0.00019865,2]
[359676301,1746243049204,-500.0,0.00019873,2]
[359676302,1746243049214,-513.96299407,0.00019873,2]
[359676303,1746243049224,-402.99682489,0.00019873,2]
[359676304,1746243049234,-162.45076163,0.00019873,2]
[359676305,1746243049246,-12500.0,0.00019874,2]
[359676306,1746243049256,-12500.0,0.00019882,2]
[359676307,1746243049266,-166.2109942,0.00019886,2]
[359676308,1746243049276,-235.05660728,0.00019886,2]
[359676309,1746243049286,-3253.30568586,0.00019889,2]
[359676310,1746243049296,-166.2109942,0.00019891,2]
[359676311,1746243049306,-12500.0,0.00019891,2]
[359676312,1746243049316,-12500.0,0.00019891,2]
[359676313,1746243049327,-166.2109942,0.00019895,2]
[359676314,1746243049337,-35642.8115532,0.00019897,2]
[359676315,1746243049347,-12500.0,0.000199,2]
[359676316,1746243049358,-12500.0,0.000199,2]
[359676317,1746243049368,-166.2109942,0.000199,2]
[359676318,1746243049378,-4093.995,0.000199,2]
[359676319,1746243049388,-323.067,0.000199,2]
[359676320,1746243049398,-2780.94450003,0.000199,2]
[359676321,1746243049407,-28599.50222021,0.000199,2]
[359676322,1746243049418,-3015.50152939,0.000199,3]
[359676323,1746243049427,-12500.0,0.000199,2]
[359676324,1746243049436,-1696.62460671,0.000199,2]
[359676325,1746243049446,-3606.13970526,0.000199,2]
[359676326,1746243049455,-180.84581838,0.000199,3]
[359676327,1746243049464,-49213.68569732,0.000199,2]
[359676328,1746243049474,-2127.0,0.000199,2]
[359676329,1746243049483,-235.05660728,0.00019956,2]
[359676330,1746243049492,-514.0,0.0001997,2]
[359676331,1746243049502,-24428.0,0.00019973,2]
[359676332,1746243049511,-502.58925245,0.00019973,2]
[359676333,1746243049520,-501.88937331,0.00019973,2]
[359676334,1746243049529,-500.0,0.00019973,2]
[359676335,1746243049547,-160.45164529,0.00019973,2]
[359676336,1746243049556,-500.0,0.00019973,2]
[359676337,1746243049566,-544.89074326,0.00019973,2]
[359676338,1746243049575,-500.0,0.00019973,2]
[359676339,1746243049584,-500.0,0.00019973,2]
[359676340,1746243049595,-959.0,0.00019973,2]
[359676341,1746243049604,-500.0,0.00019973,2]
[359676342,1746243049613,-500.0,0.00019973,2]
[359676343,1746243049622,-500.0,0.00019973,2]
[359676344,1746243049633,-500.0,0.00019973,2]
[359676345,1746243049643,-500.0,0.00019973,2]
[359676346,1746243049653,-500.0,0.00019973,2]
[359676347,1746243049662,-500.0,0.00019973,2]
[359676348,1746243049671,-38721.24492483,0.0001998,2]
[359676349,1746243049681,-40665.28617599,0.00019985,2]
[359676350,1746243049690,-7574.580708,0.00019986,2]
[359676351,1746243049699,-63582.1253842,0.00019986,2]
[359676352,1746243049709,-13110.2944398,0.00019986,2]
[359676353,1746243049718,-203012.099998,0.00019986,2]
[359676354,1746243049727,-4653.8319367,0.00019986,2]
[359676355,1746243049736,-1346.8207996,0.00019986,2]
[359676356,1746243049746,-1077.03046632,0.0001999,2]
[359676357,1746243049756,-1077.03046632,0.0001999,2]
[359676358,1746243049765,-500.0,0.00019999,2]
[359676359,1746243049774,-679.71892541,0.00019999,2]
[359676360,1746243049783,-337.95812922,0.00019999,2]
[359676361,1746243049793,-500.0,0.00019999,2]
[359676362,1746243049803,-330.07121084,0.00019999,2]
[359676363,1746243049812,-300.0,0.00019999,2]
[359676364,1746243049822,-300.0,0.00019999,2]
[359676365,1746243049833,-3975.69203247,0.00019999,2]
[359676366,1746243049842,-267.56632987,0.0002,2]
[359676367,1746243049852,-606115.05961028,0.0002,2]
[359676368,1746243049863,-225549.40150038,0.0002,2]
[359676369,1746243049873,-2521235.13867077,0.0002,2]
[359676370,1746243049884,-1000.0,0.0002,2]
[359676371,1746243049894,-1000.0,0.0002,2]
[359676372,1746243049905,-1000.0,0.0002,2]
[359676373,1746243049915,-1000.0,0.0002,2]
[359676374,1746243049925,-1000.0,0.0002,2]
[359676375,1746243049934,-1000.0,0.0002,2]
[359676376,1746243049944,-1000.0,0.0002,2]
[359676377,1746243049954,-1000.0,0.0002,2]
[359676378,1746243049963,-1000.0,0.0002,2]
[359676379,1746243049973,-1000.0,0.0002,2]
[359676380,1746243049982,-1000.0,0.0002,2]
[359676381,1746243049993,-1000.0,0.0002,2]
[359676382,1746243050002,-1000.0,0.0002,2]
[359676383,1746243050012,-1000.0,0.0002,2]
[359676384,1746243050022,-1000.0,0.0002,2]
[359676385,1746243050032,-1000.0,0.0002,2]
[359676386,1746243050043,-1000.0,0.0002,2]
[359676387,1746243050053,-1000.0,0.0002,2]
[359676388,1746243050063,-1000.0,0.0002,2]
[359676389,1746243050072,-1000.0,0.0002,2]
[359676390,1746243050084,-1000.0,0.0002,2]
[359676391,1746243050093,-1000.0,0.0002,2]
[359676392,1746243050103,-1000.0,0.0002,2]
[359676393,1746243050113,-1000.0,0.0002,2]
[359676394,1746243050123,-1000.0,0.0002,2]
[359676395,1746243050134,-1000.0,0.0002,2]
[359676396,1746243050145,-1000.0,0.0002,2]
[359676397,1746243050159,-1000.0,0.0002,2]
[359676398,1746243050169,-1000.0,0.0002,2]
[359676399,1746243050179,-1000.0,0.0002,2]
[359676400,1746243050188,-1000.0,0.0002,2]
[359676401,1746243050199,-728.7354737,0.0002,2]
[359676402,1746243050208,-118546.86405398,0.0002,2]
[359676403,1746243050554,-515.945,0.0002,2]
[359676404,1746243056834,155.31554804,0.00019483,2]
[359676405,1746243059678,1000.0,0.00019139,2]
[359676406,1746243187098,397.01,0.00017103,2]
[359676407,1746243187510,397.01,0.00019367,2]
[359676408,1746243274830,250.0,0.00017,2]
[359676409,1746243275901,300.0,0.00019,2]
[359676410,1746243337194,155.31554803,0.00019482,2]
[359676411,1746243352392,4626.37051402,0.00019482,2]
[359676412,1746243479531,522.0,0.0003277,60]
[359676413,1746243482634,250.0,0.00018816,7]
[359676414,1746243514836,1199.51,0.00032877,60]
[359676415,1746243563307,160.30541442,0.00019482,2]
[359676416,1746243589718,1548.33637928,0.00019482,2]
[359676417,1746243607495,155.31554803,0.00019482,2]
[359676419,1746243669674,150.0,0.00018792,2]
[359676420,1746243778679,160.30541442,0.00019482,2]
[359676421,1746243830477,157.84,0.00018766,2]
[359676422,1746243867708,4486.80679466,0.00019481,2]
[359676423,1746243879793,449.83,0.00018677,2]
[359676424,1746243894018,150.26,0.00019178,2]
[359676437,1746243976501,1393.50274137,0.00019481,2]
[359676721,1746244065537,1000.0,0.00018777,2]
[359676722,1746244105165,202.09,0.00018774,2]
[359676757,1746244232134,-1200.0,0.00019526,2]
[359676759,1746244232143,-87.52093162,0.00019527,2]
[359676766,1746244232228,-63.47906838,0.00019527,2]
[359676767,1746244232239,-300.0,0.00019527,2]
[359676768,1746244232249,-300.0,0.00019527,2]
[359676769,1746244232260,-250.0,0.00019527,2]
[359676770,1746244232270,-200.0,0.00019527,2]
[359676771,1746244232279,-1042.20386526,0.00019528,2]
[359676772,1746244232299,-478.31588386,0.00019528,2]
[359676773,1746244232333,-742.17024641,0.00019528,2]
[359676774,1746244232440,-1090.42243828,0.00019528,2]
[359676865,1746244238423,-1133.69436081,0.00019528,2]
[359676866,1746244238433,-1393.50274132,0.00019528,2]
[359676867,1746244238442,-151.0,0.0001957,2]
[359676868,1746244238451,-207.4,0.0001957,2]
[359676869,1746244238461,-668.65185757,0.0001957,2]
[359676870,1746244238471,-151.0,0.0001957,2]
[359676871,1746244238480,-4486.80679462,0.00019574,2]
[359676872,1746244238489,-1393.50274132,0.00019574,2]
[359676873,1746244238498,-450.0,0.0001958,2]
[359676874,1746244238508,-315.14875139,0.0001958,2]
[359676875,1746244238517,-450.0,0.0001958,2]
[359676876,1746244238527,-496.36670578,0.0001958,2]
[359676877,1746244238538,-846.333231,0.0001958,2]
[359676878,1746244238549,-450.0,0.0001958,2]
[359676879,1746244238559,-450.0,0.0001958,2]
[359676880,1746244238570,-617.722084,0.0001958,2]
[359676882,1746244238580,-450.0,0.0001958,2]
[359676883,1746244238589,-5819.71,0.0001958,2]
[359676884,1746244238599,-450.0,0.0001958,2]
[359676885,1746244238609,-450.0,0.0001958,2]
[359676887,1746244238618,-450.0,0.0001958,2]
[359676888,1746244238628,-450.0,0.0001958,2]
[359676890,1746244238637,-450.0,0.0001958,2]
[359676891,1746244238646,-450.0,0.0001958,2]
[359676893,1746244238656,-450.0,0.0001958,2]
[359676895,1746244238665,-450.0,0.0001958,2]
[359676896,1746244238676,-450.0,0.0001958,2]
[359676897,1746244238685,-450.0,0.0001958,2]
[359676899,1746244238694,-450.0,0.0001958,2]
[359676901,1746244238703,-450.0,0.0001958,2]
[359676903,1746244238712,-450.0,0.0001958,2]
[359676904,1746244238721,-450.0,0.0001958,2]
[359676905,1746244238730,-450.0,0.0001958,2]
[359676906,1746244238740,-450.0,0.0001958,2]
[359676908,1746244238749,-450.0,0.0001958,2]
[359676910,1746244238758,-498.67,0.0001958,2]
[359676912,1746244238768,-450.0,0.0001958,2]
[359676914,1746244238780,-450.0,0.0001958,2]
[359676916,1746244238790,-477.6,0.0001958,2]
[359676918,1746244238799,-1139.44,0.0001958,2]
[359676920,1746244238808,-450.0,0.0001958,2]
[359676922,1746244238817,-450.0,0.0001958,2]
[359676923,1746244238827,-450.0,0.0001958,2]
[359676924,1746244238836,-450.0,0.0001958,2]
[359676925,1746244238847,-450.0,0.0001958,2]
[359676926,1746244238856,-1015.0,0.0001958,2]
[359676927,1746244238865,-450.0,0.0001958,2]
[359676928,1746244238875,-450.0,0.0001958,2]
[359676929,1746244238884,-1000.0,0.0001958,2]
[359676930,1746244238893,-450.0,0.0001958,2]
[359676931,1746244238902,-450.0,0.0001958,2]
[359676932,1746244238911,-4545.58,0.0001958,2]
[359676933,1746244238921,-450.0,0.0001958,2]
[359676934,1746244238930,-450.0,0.0001958,2]
[359676935,1746244238940,-496.88,0.0001958,2]
[359676936,1746244238949,-450.0,0.0001958,2]
[359676937,1746244238958,-450.0,0.0001958,2]
[359676938,1746244238967,-1028.63,0.0001958,2]
[359676939,1746244238977,-1019.49,0.0001958,2]
[359676940,1746244238986,-450.0,0.0001958,2]
[359676941,1746244238995,-450.0,0.0001958,2]
[359676942,1746244239005,-450.0,0.0001958,2]
[359676943,1746244239014,-450.0,0.0001958,2]
[359676944,1746244239023,-1560.41,0.0001958,2]
[359676945,1746244239032,-450.0,0.0001958,2]
[359676946,1746244239042,-497.08,0.0001958,2]
[359676948,1746244239051,-450.0,0.0001958,2]
[359676949,1746244239060,-450.0,0.0001958,2]
[359676951,1746244239070,-1622.68,0.0001958,2]
[359676953,1746244239079,-450.0,0.0001958,2]
[359676955,1746244239089,-450.0,0.0001958,2]
[359676957,1746244239098,-450.0,0.0001958,2]
[359676959,1746244239108,-450.0,0.0001958,2]
[359676961,1746244239118,-450.0,0.0001958,2]
[359676963,1746244239127,-450.0,0.0001958,2]
[359676965,1746244239137,-500.0,0.0001958,2]
[359676966,1746244239146,-500.0,0.0001958,2]
[359676967,1746244239155,-500.0,0.0001958,2]
[359676968,1746244239165,-636.11622964,0.0001958,2]
[359676969,1746244239174,-450.0,0.00019581,2]
[359676970,1746244239183,-500.0,0.00019581,2]
[359676971,1746244239192,-500.0,0.00019581,2]
[359676972,1746244239202,-500.0,0.00019581,2]
[359676973,1746244239211,-167.1218756,0.00019581,2]
[359676974,1746244239221,-500.0,0.00019581,2]
[359676975,1746244239230,-500.0,0.00019581,2]
[359676976,1746244239239,-500.0,0.00019581,2]
[359676977,1746244239249,-450.0,0.00019581,2]
[359676978,1746244239258,-450.0,0.00019581,2]
[359676979,1746244239267,-552.0,0.00019581,2]
[359676980,1746244239277,-450.0,0.00019581,2]
[359676981,1746244239286,-450.0,0.00019581,2]
[359676982,1746244239295,-450.0,0.00019581,2]
[359676983,1746244239305,-450.0,0.00019581,2]
[359676984,1746244239314,-450.0,0.00019581,2]
[359676985,1746244239324,-450.0,0.00019581,2]
[359676986,1746244239333,-506.91292728,0.00019581,2]
[359676987,1746244239342,-505.10414937,0.00019581,2]
[359676988,1746244239351,-450.0,0.00019581,2]
[359676989,1746244239361,-464.64758104,0.00019581,2]
[359676990,1746244239370,-251.75449072,0.00019581,2]
[359676991,1746244239379,-450.0,0.00019581,2]
[359676992,1746244239389,-450.0,0.00019581,2]
[359676993,1746244239398,-450.0,0.00019581,2]
[359676995,1746244239407,-450.0,0.00019581,2]
[359676997,1746244239416,-450.0,0.00019581,2]
[359676999,1746244239426,-887.21,0.00019581,2]
[359677001,1746244239436,-450.0,0.00019581,2]
[359677003,1746244239445,-450.0,0.00019581,2]
[359677005,1746244239454,-450.0,0.00019581,2]
[359677007,1746244239464,-450.0,0.00019581,2]
[359677009,1746244239474,-450.0,0.00019581,2]
[359677011,1746244239484,-450.0,0.00019581,2]
[359677013,1746244239494,-450.0,0.00019581,2]
[359677015,1746244239503,-450.0,0.00019581,2]
[359677017,1746244239512,-681.37,0.00019581,2]
[359677019,1746244239522,-467.58,0.00019581,2]
[359677021,1746244239531,-450.0,0.00019581,2]
[359677023,1746244239541,-450.0,0.00019581,2]
[359677025,1746244239550,-450.0,0.00019581,2]
[359677027,1746244239560,-450.0,0.00019581,2]
[359677029,1746244239570,-450.0,0.00019581,2]
[359677031,1746244239579,-450.0,0.00019581,2]
[359677033,1746244239588,-450.0,0.00019581,2]
[359677035,1746244239598,-450.0,0.00019581,2]
[359677037,1746244239607,-450.0,0.00019581,2]
[359677039,1746244239617,-450.0,0.00019581,2]
[359677041,1746244239627,-450.0,0.00019581,2]
[359677043,1746244239636,-450.0,0.00019581,2]
[359677045,1746244239646,-450.0,0.00019581,2]
[359677047,1746244239655,-450.0,0.00019581,2]
[359677048,1746244239666,-450.0,0.00019581,2]
[359677049,1746244239675,-450.0,0.00019581,2]
[359677050,1746244239685,-450.0,0.00019581,2]
[359677051,1746244239695,-450.0,0.00019581,2]
[359677052,1746244239704,-519.08874398,0.00019581,2]
[359677053,1746244239714,-441.90774528,0.00019581,2]
[359677054,1746244239723,-450.0,0.00019581,2]
[359677055,1746244239733,-450.0,0.00019581,2]
[359677056,1746244239742,-808.89,0.00019581,2]
[359677057,1746244239752,-636.67,0.00019581,2]
[359677058,1746244239762,-997.91,0.00019581,2]
[359677059,1746244239772,-450.0,0.00019581,2]
[359677060,1746244239781,-450.0,0.00019581,2]
[359677061,1746244239791,-788.81,0.00019581,2]
[359677062,1746244239800,-450.0,0.00019581,2]
[359677063,1746244239810,-450.0,0.00019581,2]
[359677064,1746244239821,-500.0,0.00019581,2]
[359677065,1746244239835,-450.0,0.00019581,2]
[359677066,1746244239846,-450.0,0.00019581,2]
[359677067,1746244239856,-500.0,0.00019581,2]
[359677068,1746244239865,-450.0,0.00019581,2]
[359677069,1746244239876,-450.0,0.00019581,2]
[359677070,1746244239887,-203.43647274,0.00019581,2]
[359677071,1746244239897,-497.12,0.00019581,2]
[359677072,1746244239908,-450.0,0.00019581,2]
[359677073,1746244239918,-450.0,0.00019581,2]
[359677074,1746244239929,-482.24,0.00019581,2]
[359677075,1746244239939,-450.0,0.00019581,2]
[359677076,1746244239949,-450.0,0.00019581,2]
[359677077,1746244239959,-450.0,0.00019581,2]
[359677078,1746244239969,-4283.39,0.00019581,2]
[359677079,1746244239979,-450.0,0.00019581,2]
[359677080,1746244239989,-450.0,0.00019581,2]
[359677081,1746244239998,-450.0,0.00019581,2]
[359677082,1746244240008,-450.0,0.00019581,2]
[359677083,1746244240018,-115872.16,0.00019581,2]
[359677084,1746244240028,-450.0,0.00019581,2]
[359677085,1746244240038,-450.0,0.00019581,2]
[359677086,1746244240048,-543.82,0.00019581,2]
[359677087,1746244240057,-5443.07,0.00019581,2]
[359677088,1746244240067,-941.49,0.00019581,2]
[359677089,1746244240077,-4689.06,0.00019581,2]
[359677090,1746244240087,-450.0,0.00019581,2]
[359677091,1746244240097,-450.0,0.00019581,2]
[359677092,1746244240107,-450.0,0.00019581,2]
[359677093,1746244240117,-84352.24063721,0.00019581,2]
[359677094,1746244240137,-824.91936279,0.00019581,2]
[359677095,1746244240147,-450.0,0.00019581,2]
[359677096,1746244240158,-450.0,0.00019581,2]
[359677097,1746244240169,-450.0,0.00019581,2]
[359677098,1746244240179,-450.0,0.00019581,2]
[359677099,1746244240189,-450.0,0.00019581,2]
[359677100,1746244240199,-450.0,0.00019581,2]
[359677101,1746244240209,-500.0,0.00019581,2]
[359677102,1746244240219,-203.12657609,0.00019581,2]
[359677103,1746244240228,-450.0,0.00019581,2]
[359677104,1746244240237,-5041.18,0.00019581,2]
[359677105,1746244240247,-285.77886288,0.00019581,2]
[359677106,1746244240515,-164.22113712,0.00019581,2]
[359677107,1746244240525,-206.06872167,0.00019581,2]
[359677108,1746244240535,-112.22514121,0.00019581,2]
[359677277,1746244242473,-387.77485879,0.00019581,2]
[359677279,1746244242483,-450.0,0.00019581,2]
[359677281,1746244242492,-558.66,0.00019581,2]
[359677283,1746244242501,-150.0,0.00019581,2]
[359677284,1746244242510,-500.0,0.00019581,2]
[359677286,1746244242519,-27671.24,0.00019581,2]
[359677288,1746244242528,-450.0,0.00019581,2]
[359677290,1746244242537,-598.05,0.00019581,2]
[359677292,1746244242546,-1820.53,0.00019581,2]
[359677294,1746244242556,-569.96,0.00019581,2]
[359677296,1746244242565,-1207.53,0.00019581,2]
[359677298,1746244242575,-677.78,0.00019581,2]
[359677300,1746244242584,-15516.38,0.00019581,2]
[359677302,1746244242594,-450.0,0.00019581,2]
[359677304,1746244242603,-1395.96,0.00019581,2]
[359677306,1746244242613,-2191.12,0.00019581,2]
[359677308,1746244242622,-166.88735199,0.00019581,2]
[359677310,1746244242631,-667.6,0.00019581,2]
[359677312,1746244242640,-525.84,0.00019581,2]
[359677314,1746244242649,-450.0,0.00019581,2]
[359677316,1746244242659,-450.0,0.00019581,2]
[359677318,1746244242668,-450.0,0.00019581,2]
[359677319,1746244242678,-450.0,0.00019581,2]
[359677321,1746244242687,-3257.3,0.00019581,2]
[359677323,1746244242696,-450.0,0.00019581,2]
[359677325,1746244242705,-535.98,0.00019581,2]
[359677327,1746244242715,-450.0,0.00019581,2]
[359677329,1746244242724,-450.0,0.00019581,2]
[359677331,1746244242733,-525.43,0.00019581,2]
[359677333,1746244242742,-465.11,0.00019581,2]
[359677335,1746244242751,-450.0,0.00019581,2]
[359677337,1746244242760,-450.0,0.00019581,2]
[359677338,1746244242769,-601.02,0.00019581,2]
[359677340,1746244242779,-849.23,0.00019581,2]
[359677342,1746244242788,-1799.07,0.00019581,2]
[359677344,1746244242797,-450.0,0.00019581,2]
[359677346,1746244242806,-450.0,0.00019581,2]
[359677348,1746244242816,-450.0,0.00019581,2]
[359677350,1746244242825,-758.12,0.00019581,2]
[359677352,1746244242835,-588.25,0.00019581,2]
[359677354,1746244242844,-450.0,0.00019581,2]
[359677356,1746244242856,-450.0,0.00019581,2]
[359677358,1746244242866,-450.0,0.00019581,2]
[359677360,1746244242875,-835.69,0.00019581,2]
[359677362,1746244242884,-450.0,0.00019581,2]
[359677364,1746244242893,-1521.3,0.00019581,2]
[359677366,1746244242903,-529.78928757,0.00019581,2]
[359677367,1746244242912,-150.0,0.00019581,2]
[359677369,1746244242922,-450.0,0.00019581,2]
[359677371,1746244242931,-500.0,0.00019581,2]